[Event "Titled Tuesday Blitz August 15 Early 2023"]
[White "Floresvillar Gonzalez, Luis Migu"]
[Black "Harriott, Tyrell"]
[WhiteFideId "5100542"]
[BlackFideId "2086484"]
[WhiteElo "2110"]
[BlackElo "2436"]
[Result "1/2-1/2"]
[Round "2"]
[TimeControl "180+1"]
[Date "2023.08.15"]
[WhiteClock "0:00:13"]
[BlackClock "0:00:53"]
[Board "229"]

1. e4 {[%clk 0:02:56]}  d5 {[%clk 0:02:59]} 2. exd5 {[%clk 0:02:55]}  Nf6 {[%clk 0:03:00]} 3. c4 {[%clk 0:02:54]}  g6 {[%clk 0:02:58]} 4. d4 {[%clk 0:02:53]}  Bg7 {[%clk 0:02:58]} 5. Nf3 {[%clk 0:02:49]}  O-O {[%clk 0:02:59]} 6. Be2 {[%clk 0:02:46]}  e6 {[%clk 0:02:57]} 7. dxe6 {[%clk 0:02:46]}  Bxe6 {[%clk 0:02:57]} 8. d5 {[%clk 0:02:45]}  Bf5 {[%clk 0:02:53]} 9. Nc3 {[%clk 0:02:45]}  Na6 {[%clk 0:02:53]} 10. O-O {[%clk 0:02:44]}  Nb4 {[%clk 0:02:52]} 11. a3 {[%clk 0:02:37]}  Nc2 {[%clk 0:02:51]} 12. Ra2 {[%clk 0:02:34]}  c5 {[%clk 0:02:44]} 13. dxc6 {[%clk 0:02:23]}  bxc6 {[%clk 0:02:43]} 14. Bg5 {[%clk 0:02:17]}  c5 {[%clk 0:02:29]} 15. Nd5 {[%clk 0:02:10]}  Nd4 {[%clk 0:02:27]} 16. Nxd4 {[%clk 0:02:08]}  cxd4 {[%clk 0:02:26]} 17. Qxd4 {[%clk 0:02:01]}  Nxd5 {[%clk 0:02:26]} 18. Qxg7+ {[%clk 0:01:50]}  Kxg7 {[%clk 0:02:24]} 19. Bxd8 {[%clk 0:01:50]}  Raxd8 {[%clk 0:02:22]} 20. cxd5 {[%clk 0:01:50]}  Rxd5 {[%clk 0:02:23]} 21. b4 {[%clk 0:01:40]}  Rfd8 {[%clk 0:02:19]} 22. Bf3 {[%clk 0:01:39]}  Rd2 {[%clk 0:02:14]} 23. Rxd2 {[%clk 0:01:36]}  Rxd2 {[%clk 0:02:14]} 24. Ra1 {[%clk 0:01:26]}  Rb2 {[%clk 0:02:06]} 25. g3 {[%clk 0:01:26]}  Kf6 {[%clk 0:02:01]} 26. Kg2 {[%clk 0:01:25]}  h5 {[%clk 0:02:01]} 27. h4 {[%clk 0:01:24]}  Ke5 {[%clk 0:02:00]} 28. Re1+ {[%clk 0:01:21]}  Kd4 {[%clk 0:02:00]} 29. Re7 {[%clk 0:01:19]}  a5 {[%clk 0:01:53]} 30. bxa5 {[%clk 0:01:16]}  Ra2 {[%clk 0:01:52]} 31. Rxf7 {[%clk 0:01:07]}  Rxa3 {[%clk 0:01:52]} 32. Ra7 {[%clk 0:01:04]}  Kc5 {[%clk 0:01:46]} 33. Bb7 {[%clk 0:00:49]}  Kb5 {[%clk 0:01:36]} 34. a6 {[%clk 0:00:49]}  Kb6 {[%clk 0:01:36]} 35. Ra8 {[%clk 0:00:49]}  Ra2 {[%clk 0:01:29]} 36. Rf8 {[%clk 0:00:48]}  Ra4 {[%clk 0:01:25]} 37. Rf6+ {[%clk 0:00:48]}  Ka7 {[%clk 0:01:25]} 38. Rf7 {[%clk 0:00:46]}  Kb6 {[%clk 0:01:24]} 39. Rf8 {[%clk 0:00:44]}  Ra3 {[%clk 0:01:23]} 40. Bc8 {[%clk 0:00:42]}  Bxc8 {[%clk 0:01:18]} 41. Rxc8 {[%clk 0:00:42]}  Rxa6 {[%clk 0:01:17]} 42. Rg8 {[%clk 0:00:38]}  Kc5 {[%clk 0:01:17]} 43. Rd8 {[%clk 0:00:37]}  Rf6 {[%clk 0:01:16]} 44. f4 {[%clk 0:00:36]}  Re6 {[%clk 0:01:15]} 45. Kf3 {[%clk 0:00:35]}  Ra6 {[%clk 0:01:13]} 46. Rd3 {[%clk 0:00:35]}  Kc4 {[%clk 0:01:13]} 47. Rd1 {[%clk 0:00:31]}  Kc5 {[%clk 0:01:12]} 48. Ke4 {[%clk 0:00:30]}  Ra3 {[%clk 0:01:12]} 49. Rd3 {[%clk 0:00:29]}  Ra6 {[%clk 0:01:09]} 50. Ke5 {[%clk 0:00:29]}  Kc4 {[%clk 0:01:09]} 51. Rd4+ {[%clk 0:00:28]}  Kc3 {[%clk 0:01:09]} 52. Rd6 {[%clk 0:00:27]}  Ra5+ {[%clk 0:01:09]} 53. Kf6 {[%clk 0:00:26]}  Ra1 {[%clk 0:01:07]} 54. Kxg6 {[%clk 0:00:26]}  Rg1 {[%clk 0:01:07]} 55. Kxh5 {[%clk 0:00:24]}  Rxg3 {[%clk 0:01:07]} 56. f5 {[%clk 0:00:24]}  Kc4 {[%clk 0:01:07]} 57. f6 {[%clk 0:00:24]}  Kc5 {[%clk 0:01:07]} 58. Ra6 {[%clk 0:00:23]}  Kb5 {[%clk 0:01:07]} 59. Re6 {[%clk 0:00:22]}  Kc5 {[%clk 0:01:08]} 60. Re5+ {[%clk 0:00:21]}  Kd6 {[%clk 0:01:08]} 61. Rf5 {[%clk 0:00:18]}  Rg8 {[%clk 0:01:05]} 62. f7 {[%clk 0:00:18]}  Rf8 {[%clk 0:01:06]} 63. Kg6 {[%clk 0:00:18]}  Ke6 {[%clk 0:01:05]} 64. h5 {[%clk 0:00:18]}  Ke7 {[%clk 0:00:59]} 65. Rf1 {[%clk 0:00:17]}  Ra8 {[%clk 0:00:54]} 66. h6 {[%clk 0:00:17]}  Kf8 {[%clk 0:00:53]} 67. h7 {[%clk 0:00:15]}  Ra6+ {[%clk 0:00:53]} 68. Rf6 {[%clk 0:00:14]}  Rxf6+ {[%clk 0:00:53]} 69. Kxf6 {[%clk 0:00:13]} 1/2-1/2


[Site "https://www.chess.com"]

[Event "Titled Tuesday Blitz August 15 Early 2023"]
[White "Yeritsyan, Hayk"]
[Black "Azhar, Puteri Munajjah Az-Zahraa"]
[WhiteFideId "13307320"]
[BlackFideId "5709040"]
[WhiteElo "2434"]
[BlackElo "2109"]
[Result "1-0"]
[Round "2"]
[TimeControl "180+1"]
[Date "2023.08.15"]
[WhiteClock "0:00:06"]
[BlackClock "0:01:09"]
[Board "230"]

1. d4 {[%clk 0:01:35]}  Nf6 {[%clk 0:02:58]} 2. Nf3 {[%clk 0:01:34]}  e6 {[%clk 0:02:57]} 3. e3 {[%clk 0:01:34]}  d5 {[%clk 0:02:57]} 4. Bd3 {[%clk 0:01:34]}  Be7 {[%clk 0:02:57]} 5. Ne5 {[%clk 0:01:33]}  c5 {[%clk 0:02:53]} 6. c3 {[%clk 0:01:33]}  Nc6 {[%clk 0:02:49]} 7. f4 {[%clk 0:01:32]}  Bd7 {[%clk 0:02:43]} 8. Nd2 {[%clk 0:01:31]}  Qc7 {[%clk 0:02:39]} 9. O-O {[%clk 0:01:30]}  h5 {[%clk 0:02:35]} 10. Qf3 {[%clk 0:01:30]}  Nxe5 {[%clk 0:02:30]} 11. fxe5 {[%clk 0:01:29]}  Ng4 {[%clk 0:02:26]} 12. Qxf7+ {[%clk 0:01:28]}  Kd8 {[%clk 0:02:26]} 13. Qxg7 {[%clk 0:01:15]}  Re8 {[%clk 0:02:22]} 14. Nf3 {[%clk 0:01:07]}  Bf8 {[%clk 0:02:16]} 15. Qg5+ {[%clk 0:01:04]}  Kc8 {[%clk 0:02:08]} 16. Qxh5 {[%clk 0:01:03]}  Nh6 {[%clk 0:02:04]} 17. Ng5 {[%clk 0:00:55]}  Nf5 {[%clk 0:01:50]} 18. g4 {[%clk 0:00:41]}  Ng7 {[%clk 0:01:43]} 19. Qf7 {[%clk 0:00:25]}  Bc6 {[%clk 0:01:42]} 20. Qxc7+ {[%clk 0:00:15]}  Kxc7 {[%clk 0:01:42]} 21. Rf7+ {[%clk 0:00:14]}  Re7 {[%clk 0:01:42]} 22. Rxe7+ {[%clk 0:00:08]}  Bxe7 {[%clk 0:01:42]} 23. Nf3 {[%clk 0:00:06]}  Rf8 {[%clk 0:01:42]} 24. Kg2 {[%clk 0:00:06]}  b5 {[%clk 0:01:38]} 25. h3 {[%clk 0:00:06]}  c4 {[%clk 0:01:38]} 26. Bc2 {[%clk 0:00:06]}  b4 {[%clk 0:01:39]} 27. Bd2 {[%clk 0:00:06]}  a5 {[%clk 0:01:38]} 28. a3 {[%clk 0:00:06]}  Rb8 {[%clk 0:01:27]} 29. axb4 {[%clk 0:00:05]}  axb4 {[%clk 0:01:27]} 30. Ra7+ {[%clk 0:00:03]}  Rb7 {[%clk 0:01:27]} 31. Rxb7+ {[%clk 0:00:04]}  Kxb7 {[%clk 0:01:28]} 32. cxb4 {[%clk 0:00:04]}  Kb6 {[%clk 0:01:28]} 33. Bc3 {[%clk 0:00:05]}  Kb5 {[%clk 0:01:27]} 34. h4 {[%clk 0:00:06]}  Bxb4 {[%clk 0:01:27]} 35. Bxb4 {[%clk 0:00:05]}  Kxb4 {[%clk 0:01:28]} 36. h5 {[%clk 0:00:05]}  c3 {[%clk 0:01:29]} 37. bxc3+ {[%clk 0:00:05]}  Kxc3 {[%clk 0:01:09]} 38. Bg6 {[%clk 0:00:06]} 1-0


[Site "https://www.chess.com"]

[Event "Titled Tuesday Blitz August 15 Early 2023"]
[White "Mika, Tomasz"]
[Black "Larina, Maria"]
[WhiteFideId "1132970"]
[BlackFideId "24113182"]
[WhiteElo "2431"]
[BlackElo "2103"]
[Result "0-1"]
[Round "2"]
[TimeControl "180+1"]
[Date "2023.08.15"]
[WhiteClock "0:00:02"]
[BlackClock "0:01:20"]
[Board "231"]

1. e4 {[%clk 0:00:47]}  c6 {[%clk 0:02:57]} 2. d4 {[%clk 0:00:47]}  d5 {[%clk 0:02:55]} 3. e5 {[%clk 0:00:45]}  Bf5 {[%clk 0:02:54]} 4. h4 {[%clk 0:00:45]}  h5 {[%clk 0:02:53]} 5. Bd3 {[%clk 0:00:43]}  Bxd3 {[%clk 0:02:53]} 6. Qxd3 {[%clk 0:00:44]}  e6 {[%clk 0:02:54]} 7. Nf3 {[%clk 0:00:39]}  Nh6 {[%clk 0:02:45]} 8. c4 {[%clk 0:00:34]}  dxc4 {[%clk 0:02:43]} 9. Qxc4 {[%clk 0:00:34]}  Nd7 {[%clk 0:02:43]} 10. Nc3 {[%clk 0:00:33]}  Nb6 {[%clk 0:02:42]} 11. Qb3 {[%clk 0:00:33]}  Nf5 {[%clk 0:02:38]} 12. Bg5 {[%clk 0:00:22]}  Be7 {[%clk 0:02:31]} 13. Bxe7 {[%clk 0:00:21]}  Qxe7 {[%clk 0:02:30]} 14. Ne4 {[%clk 0:00:21]}  Rd8 {[%clk 0:02:15]} 15. Rd1 {[%clk 0:00:20]}  O-O {[%clk 0:02:01]} 16. Qc2 {[%clk 0:00:18]}  Nd5 {[%clk 0:01:53]} 17. a3 {[%clk 0:00:14]}  Nf4 {[%clk 0:01:32]} 18. Kf1 {[%clk 0:00:12]}  Nd5 {[%clk 0:01:20]} 19. Rh3 {[%clk 0:00:09]}  Nfe3+ {[%clk 0:01:19]} 20. fxe3 {[%clk 0:00:02]}  Nxe3+ {[%clk 0:01:20]} 0-1


[Site "https://www.chess.com"]

[Event "Titled Tuesday Blitz August 15 Early 2023"]
[White "Politov, Pavel Y."]
[Black "TomLiu777"]
[WhiteFideId "24110515"]
[WhiteElo "2090"]
[BlackElo "2429"]
[Result "0-1"]
[Round "2"]
[TimeControl "180+1"]
[Date "2023.08.15"]
[WhiteClock "0:00:00"]
[BlackClock "0:00:48"]
[Board "233"]

1. e4 {[%clk 0:03:00]}  c5 {[%clk 0:02:58]} 2. Nf3 {[%clk 0:03:00]}  d6 {[%clk 0:02:59]} 3. d4 {[%clk 0:02:59]}  cxd4 {[%clk 0:02:59]} 4. Nxd4 {[%clk 0:03:00]}  Nf6 {[%clk 0:03:00]} 5. Nc3 {[%clk 0:03:00]}  a6 {[%clk 0:03:00]} 6. f3 {[%clk 0:02:56]}  e6 {[%clk 0:03:01]} 7. Be3 {[%clk 0:02:55]}  Be7 {[%clk 0:03:01]} 8. Qd2 {[%clk 0:02:54]}  Qc7 {[%clk 0:03:01]} 9. g4 {[%clk 0:02:52]}  b5 {[%clk 0:03:01]} 10. g5 {[%clk 0:02:32]}  Nfd7 {[%clk 0:03:00]} 11. O-O-O {[%clk 0:02:32]}  Bb7 {[%clk 0:02:52]} 12. Kb1 {[%clk 0:02:30]}  Nc6 {[%clk 0:02:51]} 13. Nxc6 {[%clk 0:01:31]}  Qxc6 {[%clk 0:02:49]} 14. h4 {[%clk 0:01:24]}  Ne5 {[%clk 0:02:47]} 15. Qf2 {[%clk 0:01:12]}  b4 {[%clk 0:02:43]} 16. Ne2 {[%clk 0:01:11]}  Rc8 {[%clk 0:02:09]} 17. Nd4 {[%clk 0:01:08]}  Qc7 {[%clk 0:02:09]} 18. Bc1 {[%clk 0:01:02]}  Nc6 {[%clk 0:02:00]} 19. Nxc6 {[%clk 0:00:58]}  Qxc6 {[%clk 0:02:01]} 20. Rh2 {[%clk 0:00:55]}  a5 {[%clk 0:02:01]} 21. Qd4 {[%clk 0:00:52]}  O-O {[%clk 0:01:59]} 22. h5 {[%clk 0:00:46]}  e5 {[%clk 0:01:58]} 23. Qd3 {[%clk 0:00:34]}  a4 {[%clk 0:01:50]} 24. Qb5 {[%clk 0:00:32]}  Qxb5 {[%clk 0:01:07]} 25. Bxb5 {[%clk 0:00:33]}  Bc6 {[%clk 0:01:08]} 26. Bxc6 {[%clk 0:00:32]}  Rxc6 {[%clk 0:01:08]} 27. Rd5 {[%clk 0:00:23]}  Rc5 {[%clk 0:01:06]} 28. Rxc5 {[%clk 0:00:21]}  dxc5 {[%clk 0:01:07]} 29. Be3 {[%clk 0:00:12]}  f5 {[%clk 0:00:52]} 30. gxf6 {[%clk 0:00:03]}  Rxf6 {[%clk 0:00:48]} 31. Bg5 {[%clk 0:00:00]}  Rd6 {[%clk 0:00:48]} 0-1


[Site "https://www.chess.com"]

[Event "Titled Tuesday Blitz August 15 Early 2023"]
[White "Winkels, Marcel"]
[Black "Nathan, Nitish"]
[WhiteFideId "1003887"]
[BlackFideId "30927870"]
[WhiteElo "2075"]
[BlackElo "2425"]
[Result "0-1"]
[Round "2"]
[TimeControl "180+1"]
[Date "2023.08.15"]
[WhiteClock "0:00:00"]
[BlackClock "0:01:11"]
[Board "234"]

1. e4 {[%clk 0:03:00]}  c5 {[%clk 0:02:59]} 2. Nf3 {[%clk 0:02:59]}  Nc6 {[%clk 0:02:59]} 3. Bb5 {[%clk 0:02:58]}  e6 {[%clk 0:02:59]} 4. Bxc6 {[%clk 0:02:56]}  bxc6 {[%clk 0:03:00]} 5. d3 {[%clk 0:02:55]}  Ne7 {[%clk 0:02:59]} 6. O-O {[%clk 0:02:54]}  Ng6 {[%clk 0:02:58]} 7. Nc3 {[%clk 0:02:51]}  e5 {[%clk 0:02:58]} 8. Be3 {[%clk 0:02:48]}  d6 {[%clk 0:02:57]} 9. Qd2 {[%clk 0:02:47]}  Be7 {[%clk 0:02:56]} 10. a3 {[%clk 0:02:43]}  O-O {[%clk 0:02:54]} 11. b4 {[%clk 0:02:42]}  cxb4 {[%clk 0:02:52]} 12. axb4 {[%clk 0:02:42]}  d5 {[%clk 0:02:53]} 13. exd5 {[%clk 0:02:37]}  cxd5 {[%clk 0:02:51]} 14. Bc5 {[%clk 0:02:37]}  Bxc5 {[%clk 0:02:44]} 15. bxc5 {[%clk 0:02:37]}  Bb7 {[%clk 0:02:43]} 16. d4 {[%clk 0:02:31]}  e4 {[%clk 0:02:41]} 17. Ne5 {[%clk 0:02:26]}  Nxe5 {[%clk 0:02:40]} 18. dxe5 {[%clk 0:02:25]}  d4 {[%clk 0:02:40]} 19. Nb5 {[%clk 0:02:24]}  Qd7 {[%clk 0:02:03]} 20. Nxd4 {[%clk 0:02:08]}  Qd5 {[%clk 0:02:01]} 21. Rfd1 {[%clk 0:01:44]}  Qxc5 {[%clk 0:01:52]} 22. e6 {[%clk 0:01:34]}  Rae8 {[%clk 0:01:48]} 23. Rab1 {[%clk 0:01:15]}  Ba8 {[%clk 0:01:42]} 24. exf7+ {[%clk 0:01:12]}  Rxf7 {[%clk 0:01:41]} 25. Qe3 {[%clk 0:00:58]}  Qe5 {[%clk 0:01:30]} 26. Rb5 {[%clk 0:00:54]}  Qe7 {[%clk 0:01:26]} 27. Nf5 {[%clk 0:00:36]}  Qf6 {[%clk 0:01:18]} 28. Nd6 {[%clk 0:00:25]}  Rd8 {[%clk 0:01:15]} 29. Qd4 {[%clk 0:00:15]}  Qxd4 {[%clk 0:01:14]} 30. Rxd4 {[%clk 0:00:14]}  Rfd7 {[%clk 0:01:15]} 31. Nf5 {[%clk 0:00:02]}  Rxd4 {[%clk 0:01:14]} 32. Nxd4 {[%clk 0:00:03]}  Rxd4 {[%clk 0:01:13]} 33. Rb8+ {[%clk 0:00:03]}  Kf7 {[%clk 0:01:13]} 34. h3 {[%clk 0:00:00]}  Bd5 {[%clk 0:01:11]} 0-1


[Site "https://www.chess.com"]

[Event "Titled Tuesday Blitz August 15 Early 2023"]
[White "Lakshmi C"]
[Black "Miszler, Levente"]
[WhiteFideId "25035347"]
[BlackFideId "763276"]
[WhiteElo "2070"]
[BlackElo "2424"]
[Result "0-1"]
[Round "2"]
[TimeControl "180+1"]
[Date "2023.08.15"]
[WhiteClock "0:00:03"]
[BlackClock "0:01:32"]
[Board "235"]

1. e4 {[%clk 0:02:42]}  e6 {[%clk 0:02:54]} 2. d4 {[%clk 0:02:38]}  d5 {[%clk 0:02:54]} 3. Nc3 {[%clk 0:02:37]}  Bb4 {[%clk 0:02:53]} 4. e5 {[%clk 0:02:37]}  c5 {[%clk 0:02:48]} 5. a3 {[%clk 0:02:33]}  Bxc3+ {[%clk 0:02:43]} 6. bxc3 {[%clk 0:02:32]}  Nc6 {[%clk 0:02:40]} 7. Qg4 {[%clk 0:02:30]}  Kf8 {[%clk 0:02:39]} 8. Nf3 {[%clk 0:02:17]}  h5 {[%clk 0:02:36]} 9. Qf4 {[%clk 0:02:09]}  Bd7 {[%clk 0:02:10]} 10. Bd3 {[%clk 0:01:59]}  Qa5 {[%clk 0:02:05]} 11. Bd2 {[%clk 0:01:52]}  Qa4 {[%clk 0:02:04]} 12. Ng5 {[%clk 0:01:30]}  Nh6 {[%clk 0:02:02]} 13. Nf3 {[%clk 0:00:14]}  c4 {[%clk 0:01:53]} 14. Be2 {[%clk 0:00:13]}  Qxc2 {[%clk 0:01:51]} 15. O-O {[%clk 0:00:12]}  Qf5 {[%clk 0:01:40]} 16. Qe3 {[%clk 0:00:09]}  Ng4 {[%clk 0:01:40]} 17. Qg5 {[%clk 0:00:06]}  Qxg5 {[%clk 0:01:40]} 18. Nxg5 {[%clk 0:00:06]}  Ke7 {[%clk 0:01:39]} 19. Rfb1 {[%clk 0:00:05]}  b6 {[%clk 0:01:38]} 20. h3 {[%clk 0:00:06]}  Nh6 {[%clk 0:01:38]} 21. Nf3 {[%clk 0:00:06]}  Na5 {[%clk 0:01:34]} 22. Ne1 {[%clk 0:00:05]}  Nb3 {[%clk 0:01:32]} 23. Be3 {[%clk 0:00:05]}  Nxa1 {[%clk 0:01:32]} 24. Rxa1 {[%clk 0:00:03]}  Nf5 {[%clk 0:01:32]} 0-1


[Site "https://www.chess.com"]

[Event "Titled Tuesday Blitz August 15 Early 2023"]
[White "Akylbekov, Nasyr"]
[Black "Kriti Mayur Patel"]
[WhiteFideId "13800353"]
[BlackFideId "35061780"]
[WhiteElo "2421"]
[BlackElo "2063"]
[Result "1-0"]
[Round "2"]
[TimeControl "180+1"]
[Date "2023.08.15"]
[WhiteClock "0:02:10"]
[BlackClock "0:02:13"]
[Board "237"]

1. e4 {[%clk 0:03:00]}  e5 {[%clk 0:03:00]} 2. Nf3 {[%clk 0:03:00]}  Nc6 {[%clk 0:03:00]} 3. Nc3 {[%clk 0:03:00]}  Nf6 {[%clk 0:03:00]} 4. d4 {[%clk 0:03:01]}  exd4 {[%clk 0:03:01]} 5. Nxd4 {[%clk 0:03:02]}  Bb4 {[%clk 0:03:00]} 6. Nxc6 {[%clk 0:03:02]}  bxc6 {[%clk 0:02:58]} 7. Bd3 {[%clk 0:03:03]}  O-O {[%clk 0:02:57]} 8. O-O {[%clk 0:03:02]}  d5 {[%clk 0:02:57]} 9. exd5 {[%clk 0:03:03]}  cxd5 {[%clk 0:02:57]} 10. Bg5 {[%clk 0:03:03]}  Be7 {[%clk 0:02:55]} 11. Qf3 {[%clk 0:03:02]}  Bb7 {[%clk 0:02:54]} 12. Rae1 {[%clk 0:03:01]}  Rb8 {[%clk 0:02:52]} 13. Re2 {[%clk 0:02:53]}  d4 {[%clk 0:02:48]} 14. Qh3 {[%clk 0:02:53]}  h6 {[%clk 0:02:42]} 15. Bxf6 {[%clk 0:02:48]}  Bxf6 {[%clk 0:02:43]} 16. Ne4 {[%clk 0:02:48]}  Re8 {[%clk 0:02:35]} 17. b3 {[%clk 0:02:25]}  Bc8 {[%clk 0:02:28]} 18. Nxf6+ {[%clk 0:02:22]}  gxf6 {[%clk 0:02:20]} 19. Qxh6 {[%clk 0:02:15]}  Rxe2 {[%clk 0:02:16]} 20. Bh7+ {[%clk 0:02:10]}  Kh8 {[%clk 0:02:13]} 21. Bg6+ {[%clk 0:02:10]}  Kg8 {[%clk 0:02:13]} 22. Qh7+ {[%clk 0:02:11]}  Kf8 {[%clk 0:02:13]} 23. Qxf7# {[%clk 0:02:10]} 1-0


[Site "https://www.chess.com"]

[Event "Titled Tuesday Blitz August 15 Early 2023"]
[White "Gheorghiu, Calin"]
[Black "Daurelle, Herve"]
[WhiteFideId "1200305"]
[BlackFideId "602655"]
[WhiteElo "2420"]
[BlackElo "2058"]
[Result "0-1"]
[Round "2"]
[TimeControl "180+1"]
[Date "2023.08.15"]
[WhiteClock "0:00:34"]
[BlackClock "0:01:03"]
[Board "238"]

1. e4 {[%clk 0:02:19]}  c5 {[%clk 0:02:57]} 2. Nf3 {[%clk 0:02:19]}  d6 {[%clk 0:02:57]} 3. d4 {[%clk 0:02:17]}  cxd4 {[%clk 0:02:57]} 4. Nxd4 {[%clk 0:02:18]}  Nf6 {[%clk 0:02:57]} 5. Nc3 {[%clk 0:02:18]}  g6 {[%clk 0:02:58]} 6. Bc4 {[%clk 0:02:08]}  Bg7 {[%clk 0:02:56]} 7. Bb3 {[%clk 0:02:08]}  O-O {[%clk 0:02:53]} 8. f3 {[%clk 0:02:08]}  Nc6 {[%clk 0:02:53]} 9. Be3 {[%clk 0:02:06]}  Bd7 {[%clk 0:02:44]} 10. Qd2 {[%clk 0:02:06]}  Nxd4 {[%clk 0:02:43]} 11. Bxd4 {[%clk 0:02:02]}  b5 {[%clk 0:02:44]} 12. a4 {[%clk 0:01:38]}  bxa4 {[%clk 0:02:12]} 13. Bxa4 {[%clk 0:01:24]}  a5 {[%clk 0:02:00]} 14. O-O {[%clk 0:01:23]}  Be6 {[%clk 0:01:32]} 15. Rfd1 {[%clk 0:01:12]}  Rb8 {[%clk 0:01:21]} 16. b3 {[%clk 0:01:02]}  Rb4 {[%clk 0:01:13]} 17. Nd5 {[%clk 0:00:53]}  Nxe4 {[%clk 0:01:08]} 18. fxe4 {[%clk 0:00:47]}  Bxd4+ {[%clk 0:01:05]} 19. Kh1 {[%clk 0:00:34]}  Bxd5 {[%clk 0:01:03]} 0-1


[Site "https://www.chess.com"]

[Event "Titled Tuesday Blitz August 15 Early 2023"]
[White "Todorovic, Bojan"]
[Black "Nikulina, Alena"]
[WhiteFideId "917087"]
[BlackFideId "4172051"]
[WhiteElo "2418"]
[BlackElo "2058"]
[Result "1-0"]
[Round "2"]
[TimeControl "180+1"]
[Date "2023.08.15"]
[WhiteClock "0:00:47"]
[BlackClock "0:00:13"]
[Board "239"]

1. Nf3 {[%clk 0:02:55]}  d5 {[%clk 0:02:55]} 2. c4 {[%clk 0:02:54]}  c6 {[%clk 0:02:54]} 3. e3 {[%clk 0:02:49]}  Nf6 {[%clk 0:02:52]} 4. Nc3 {[%clk 0:02:44]}  e6 {[%clk 0:02:48]} 5. b3 {[%clk 0:02:43]}  Bd6 {[%clk 0:02:43]} 6. Bb2 {[%clk 0:02:42]}  O-O {[%clk 0:02:42]} 7. Qc2 {[%clk 0:02:34]}  Nbd7 {[%clk 0:02:38]} 8. Be2 {[%clk 0:02:33]}  e5 {[%clk 0:02:26]} 9. cxd5 {[%clk 0:02:31]}  cxd5 {[%clk 0:02:25]} 10. Nb5 {[%clk 0:02:30]}  Bb8 {[%clk 0:02:18]} 11. Ba3 {[%clk 0:02:22]}  Re8 {[%clk 0:02:10]} 12. Rc1 {[%clk 0:02:02]}  Nb6 {[%clk 0:01:49]} 13. Nc7 {[%clk 0:01:54]}  Bxc7 {[%clk 0:01:42]} 14. Qxc7 {[%clk 0:01:54]}  d4 {[%clk 0:01:05]} 15. Qxd8 {[%clk 0:01:51]}  Rxd8 {[%clk 0:01:05]} 16. Nxe5 {[%clk 0:01:51]}  dxe3 {[%clk 0:01:03]} 17. dxe3 {[%clk 0:01:47]}  Be6 {[%clk 0:00:55]} 18. Bf3 {[%clk 0:01:35]}  Bd5 {[%clk 0:00:50]} 19. O-O {[%clk 0:01:34]}  Rac8 {[%clk 0:00:47]} 20. Be7 {[%clk 0:01:28]}  Re8 {[%clk 0:00:35]} 21. Bxf6 {[%clk 0:01:23]}  gxf6 {[%clk 0:00:33]} 22. Nd7 {[%clk 0:01:08]}  Bxf3 {[%clk 0:00:22]} 23. Nxf6+ {[%clk 0:01:07]}  Kf8 {[%clk 0:00:21]} 24. Nxe8 {[%clk 0:01:07]}  Be2 {[%clk 0:00:15]} 25. Rxc8 {[%clk 0:01:04]}  Nxc8 {[%clk 0:00:14]} 26. Rc1 {[%clk 0:01:04]}  Kxe8 {[%clk 0:00:13]} 27. Rxc8+ {[%clk 0:01:02]}  Kd7 {[%clk 0:00:13]} 28. Rc2 {[%clk 0:00:59]}  Bb5 {[%clk 0:00:13]} 29. e4 {[%clk 0:00:57]}  Ke6 {[%clk 0:00:13]} 30. f3 {[%clk 0:00:55]}  f5 {[%clk 0:00:13]} 31. exf5+ {[%clk 0:00:52]}  Kf6 {[%clk 0:00:13]} 32. g4 {[%clk 0:00:51]}  h5 {[%clk 0:00:12]} 33. Kf2 {[%clk 0:00:50]}  Bd3 {[%clk 0:00:13]} 34. Rd2 {[%clk 0:00:49]}  Bb5 {[%clk 0:00:13]} 35. Kg3 {[%clk 0:00:48]}  hxg4 {[%clk 0:00:13]} 36. fxg4 {[%clk 0:00:47]} 1-0


[Site "https://www.chess.com"]

[Event "Titled Tuesday Blitz August 15 Early 2023"]
[White "Rom, Jasper"]
[Black "Gyulamiryan-koryun"]
[WhiteFideId "2023733"]
[WhiteElo "2414"]
[BlackElo "2032"]
[Result "1-0"]
[Round "2"]
[TimeControl "180+1"]
[Date "2023.08.15"]
[WhiteClock "0:00:01"]
[BlackClock "0:00:00"]
[Board "242"]

1. e4 {[%clk 0:02:51]}  c6 {[%clk 0:02:59]} 2. Nc3 {[%clk 0:02:47]}  d5 {[%clk 0:02:57]} 3. Nf3 {[%clk 0:02:47]}  Bg4 {[%clk 0:02:56]} 4. h3 {[%clk 0:02:47]}  Bxf3 {[%clk 0:02:55]} 5. Qxf3 {[%clk 0:02:48]}  e6 {[%clk 0:02:53]} 6. Be2 {[%clk 0:02:46]}  Nd7 {[%clk 0:02:52]} 7. d4 {[%clk 0:02:45]}  dxe4 {[%clk 0:02:47]} 8. Nxe4 {[%clk 0:02:45]}  Ngf6 {[%clk 0:02:47]} 9. c3 {[%clk 0:02:31]}  Be7 {[%clk 0:02:46]} 10. O-O {[%clk 0:02:30]}  h6 {[%clk 0:02:45]} 11. Bf4 {[%clk 0:02:28]}  O-O {[%clk 0:02:43]} 12. Bd3 {[%clk 0:02:27]}  Nd5 {[%clk 0:02:38]} 13. Bd2 {[%clk 0:02:13]}  a5 {[%clk 0:02:20]} 14. Rfe1 {[%clk 0:02:07]}  a4 {[%clk 0:02:17]} 15. Qg3 {[%clk 0:02:05]}  Kh8 {[%clk 0:02:13]} 16. Qf3 {[%clk 0:01:38]}  a3 {[%clk 0:01:54]} 17. b3 {[%clk 0:01:37]}  b5 {[%clk 0:01:48]} 18. Rad1 {[%clk 0:01:37]}  N7f6 {[%clk 0:01:38]} 19. Bb1 {[%clk 0:01:34]}  Qd7 {[%clk 0:01:16]} 20. g4 {[%clk 0:01:17]}  Nh7 {[%clk 0:01:09]} 21. c4 {[%clk 0:01:10]}  Nb6 {[%clk 0:00:41]} 22. Qd3 {[%clk 0:00:56]}  f5 {[%clk 0:00:41]} 23. Nc5 {[%clk 0:00:46]}  Bxc5 {[%clk 0:00:22]} 24. dxc5 {[%clk 0:00:47]}  Qxd3 {[%clk 0:00:20]} 25. Bxd3 {[%clk 0:00:46]}  bxc4 {[%clk 0:00:20]} 26. cxb6 {[%clk 0:00:27]}  cxd3 {[%clk 0:00:20]} 27. Rxe6 {[%clk 0:00:28]}  fxg4 {[%clk 0:00:16]} 28. hxg4 {[%clk 0:00:27]}  Nf6 {[%clk 0:00:11]} 29. f3 {[%clk 0:00:25]}  Nd5 {[%clk 0:00:10]} 30. Rxc6 {[%clk 0:00:22]}  Rfb8 {[%clk 0:00:10]} 31. Be1 {[%clk 0:00:10]}  Nf4 {[%clk 0:00:09]} 32. Bg3 {[%clk 0:00:03]}  Ne2+ {[%clk 0:00:09]} 33. Kf2 {[%clk 0:00:03]}  Nd4 {[%clk 0:00:04]} 34. Rd6 {[%clk 0:00:02]}  Nb5 {[%clk 0:00:05]} 35. Rc6 {[%clk 0:00:01]}  Nd4 {[%clk 0:00:04]} 36. Rd6 {[%clk 0:00:01]}  Nb5 {[%clk 0:00:04]} 37. Re6 {[%clk 0:00:02]}  Nc3 {[%clk 0:00:04]} 38. Rxd3 {[%clk 0:00:01]}  Nxa2 {[%clk 0:00:04]} 39. Bxb8 {[%clk 0:00:01]}  Rxb8 {[%clk 0:00:04]} 40. Rd7 {[%clk 0:00:01]}  Nb4 {[%clk 0:00:04]} 41. b7 {[%clk 0:00:01]}  a2 {[%clk 0:00:04]} 42. Re1 {[%clk 0:00:02]}  Nc2 {[%clk 0:00:02]} 43. Rc1 {[%clk 0:00:01]}  a1=Q {[%clk 0:00:01]} 44. Rxa1 {[%clk 0:00:01]}  Nxa1 {[%clk 0:00:02]} 45. Rc7 {[%clk 0:00:02]}  Kh7 {[%clk 0:00:02]} 46. b4 {[%clk 0:00:02]}  Nb3 {[%clk 0:00:00]} 47. Ke3 {[%clk 0:00:01]} 1-0


[Site "https://www.chess.com"]